Cogmind - Beta 14 @@@ ROGUE MODE // 2024.09.08 @ 11:43:48 Player: Dull Result: Destroyed by G-47 Trooper with Particle Gun Performance ------------- Evolutions (0) 0 Regions Visited (2) 400 Robots Destroyed (20) 100 Value Destroyed (564) 564 Prototype IDs (2) 40 Alien Tech Used (0) 0 Bonus (0) 0 TOTAL SCORE: 1104 Bonus ------- None Cogmind --------- Core Integrity 0/250 Matter 262/300 Energy 76/250 System Corruption 0% Temperature Cool (26) Movement Walking (190) Ox1 Location -10/Mines Parts ------- > --- POWER (1) -------- Ion Engine > --- PROPULSION (2) --- Aluminum Leg Aluminum Leg > --- UTILITY (2) ------ Large Storage Unit Core Shielding > --- WEAPON (2) ------- (None) > --- INVENTORY (15) --- Ion Engine Aluminum Leg Aluminum Leg Aluminum Leg Aluminum Leg Aluminum Leg Aluminum Leg Large Storage Unit Medium Matter Pod (100) Medium Matter Pod (55) Peak State ------------ > --- POWER ------------ Light Ion Engine > --- PROPULSION ------- Aluminum Leg Aluminum Leg > --- UTILITY ---------- Large Storage Unit Weapon Shielding > --- WEAPON ----------- Beam Cannon Assault Rifle > --- INVENTORY -------- Light Ion Engine Light Treads Aluminum Leg Aluminum Leg Aluminum Leg Aluminum Leg Aluminum Leg Assault Rifle Light Assault Rifle Mining Laser [Rating: 8] Favorites ----------- Power Light Ion Engine Engine Light Ion Engine Propulsion Aluminum Leg Leg Aluminum Leg Utility Large Storage Unit Device ECM Suite Storage Large Storage Unit Protection Weapon Shielding Weapon Assault Rifle Energy Cannon Beam Cannon Ballistic Gun Assault Rifle Special Weapon Mining Laser Build | -11 -10 -10 ------- Run | Yrd Mat Min Slots Evolved . | . . . Power . | . . . Propulsion . | . . . Utility . | . . . Weapon . | . . . Parts Attached 27 | 4 17 6 Power 7 | 1 4 2 Engine 7 | 1 4 2 Core . | . . . Reactor . | . . . Propulsion 10 | 2 6 2 Treads . | . . . Leg 10 | 2 6 2 Wheel . | . . . Hover . | . . . Flight . | . . . Utility 5 | 1 4 . Device 1 | . 1 . Storage 2 | 1 1 . Processor . | . . . Hackware . | . . . Protection 2 | . 2 . Artifact . | . . . Weapon 5 | . 3 2 Energy Gun . | . . . Energy Cannon 1 | . 1 . Ballistic Gun 3 | . 2 1 Ballistic Cannon . | . . . Launcher . | . . . Special Weapon 1 | . . 1 Impact Weapon . | . . . Slashing Weapon . | . . . Piercing Weapon . | . . . Special Melee Weapon . | . . . Unidentified Prototypes . | . . . Parts Lost 12 | . 4 8 Power 3 | . 1 2 Propulsion 3 | . 1 2 Utility 1 | . 1 . Weapon 5 | . 1 4 Highest Loss Streak 5 | . 3 5 To Critical Strikes . | . . . Average Slot Usage (%) 96 | . 97 81 Engine 13 | . 13 10 Leg 26 | . 27 17 Storage 14 | . 14 14 Protection 12 | . 11 14 Energy Cannon 11 | . 13 . Ballistic Gun 15 | . 14 23 Peak Build Rating 8 | 4 8 8 Average Rating 7 | 3 7 6 On Entrance 4 | . 4 8 Naked Turns . | . . . Heaviest Build 31 | 8 31 29 Greatest Support 20 | 20 20 20 Greatest Overweight (x) 2 | . 1 2 Average Overweight (x) . | . . 1 Largest Inventory Capacity 15 | 8 15 15 Average Capacity 12 | 7 13 15 Most Carried 15 | 6 15 14 Average Carried 11 | 5 12 13 Final Capacity 15 | 8 15 15 Final Carried 13 | 6 13 10 Class Distribution -------------------- 100% | Mutant Dominant Class ---------------- Mutant | -10/Materials Mutant | -10/Mines Resources | -11 -10 -10 ----------- Run | Yrd Mat Min Matter Collected 758 | 177 510 71 Remotely . | . . . Salvage Created 834 | . 756 78 Parts 34 | . 32 2 Haulers Intercepted . | . . . Recyclers Shooed 1 | . 1 . Parts Field Recycled . | . . . Retrieved Matter . | . . . Parts Self-Destructed . | . . . Prevented . | . . . Kills | -11 -10 -10 ------- Run | Yrd Mat Min Combat Hostiles Destroyed 15 | . 13 2 Guns 6 | . 5 1 Cannons 8 | . 8 . AOE 1 | . . 1 Classes Destroyed 4 | . 4 . Recycler 4 | . 4 . Mechanic 1 | . 1 . Swarmer 3 | . 3 . Grunt 12 | . 10 2 Best Kill Streak 5 | . 5 1 Combat Bots Only 3 | . 3 1 Max Kills in Single Turn 2 | . 2 1 Gunslinging . | . . . Exploded 1 | . . 1 Melee . | . . . Uniques/NPCs Destroyed . | . . . Combat | -11 -10 -10 -------- Run | Yrd Mat Min Hostile Shots Fired 128 | . 71 57 Missed 35 | . 23 12 Damage Taken 1498 | . 697 801 Core 258 | . 85 173 Absorbed by Shields . | . . . Redirected to Shielding 98 | . 61 37 Regen/Repaired (Parts) 42 | . 42 . Core Remaining (%) 100 | 100 . . Volleys Fired 70 | . 49 21 Largest 2 | . 2 2 Hottest 120 | . 80 120 Shots Fired 128 | . 98 30 Gun 78 | . 50 28 Cannon 48 | . 48 . Launcher . | . . . Special 2 | . . 2 Kinetic 78 | . 50 28 Thermal 50 | . 48 2 Explosive . | . . . Electromagnetic . | . . . Robot Hit Streak 12 | . 12 9 Robot Miss Streak 5 | . 5 4 Penetration Max . | . . . Secondary Targets . | . . . Shots Hit Robots 79 | . 58 21 Core Hits 31 | . 25 6 Critical Kills . | . . . Critical Parts Destroyed 1 | . 1 . Critical Strikes 1 | . 1 . Destroy 1 | . 1 . Melee Attacks . | . . . Impact . | . . . Slashing . | . . . Piercing . | . . . Sneak Attacks . | . . . Combat Hostiles . | . . . Follow-up Attacks . | . . . Damage Inflicted 1432 | . 1173 259 Guns 604 | . 369 235 Cannons 565 | . 565 . Explosions 239 | . 239 . Melee . | . . . Ramming . | . . . Kinetic 604 | . 369 235 Thermal 828 | . 804 24 Explosive . | . . . Electromagnetic . | . . . Impact . | . . . Slashing . | . . . Piercing . | . . . Highest Corruption . | . . . Average Corruption . | . . . Corruption Purged . | . . . Corruption Blocked . | . . . Overload Shots . | . . . Overflow Damage 100 | . 100 . Projectiles 4 | . 4 . Explosions 96 | . 96 . Melee . | . . . Knockbacks . | . . . Impact . | . . . Kinetic . | . . . Secondary . | . . . Self-Inflicted Damage 126 | . 126 . Shots 2 | . 2 . Rammed . | . . . Targets Rammed . | . . . Kicked . | . . . Crushed . | . . . Highest Temperature 246 | . 246 121 Average Temperature 77 | . 83 40 Received Heat Transfer 663 | . 288 375 Effects 1 | . 1 . Energy Bleed 1 | . 1 . Siege Activations . | . . . Robots Corrupted . | . . . Combat Hostiles . | . . . Parts Fried . | . . . Impact Corruptions . | . . . Robots Melted . | . . . Combat Hostiles . | . . . Parts Melted 3 | . 3 . Heat Transferred 1384 | . 1334 50 Parts Sabotaged . | . . . Parts Stolen . | . . . Parts Stripped . | . . . Power Chain Reactions . | . . . Alert | -11 -10 -10 ------- Run | Yrd Mat Min Peak Influence 181 | . 181 113 Initial 63 | . . 63 Average 54 | . 54 93 Maximum Alert Level . | . . . Low Security (%) 100 | 100 100 100 Level 1 . | . . . Level 2 . | . . . Level 3 . | . . . Level 4 . | . . . Level 5 . | . . . High Security . | . . . Max Security . | . . . Squads Dispatched 3 | . 3 . Investigation 1 | . 1 . Extermination . | . . . Reinforcement 2 | . 2 . Assault . | . . . Garrison . | . . . Intercept . | . . . Searches Triggered . | . . . Construction Impeded . | . . . Haulers Reinforced . | . . . Active Scanning Responses . | . . . Cargo Convoy Interrupts . | . . . Stealth | -11 -10 -10 --------- Run | Yrd Mat Min Distress Signals . | . . . Communications Jammed . | . . . Distress Signals . | . . . Times Spotted 35 | . 28 7 Peak Tracking Total 4 | . 4 3 Tactical Retreats 2 | . 1 1 Traps | -11 -10 -10 ------- Run | Yrd Mat Min Traps Triggered 1 | . 1 . Indirectly . | . . . Trap Hack Attempts . | . . . Triggered . | . . . Disarmed . | . . . Reprogrammed . | . . . Reused . | . . . Traps Extracted . | . . . Installed . | . . . Triggered . | . . . Machines | -11 -10 -10 ---------- Run | Yrd Mat Min Machines Disabled 5 | . 4 1 Max in Single Turn 2 | . 2 1 Machines Repaired . | . . . Machines Dismantled . | . . . Machines Sabotaged . | . . . Overloaded Fab Kills . | . . . Hacking | -11 -10 -10 --------- Run | Yrd Mat Min Machines Accessed 6 | . 6 . Terminals 3 | . 3 . Fabricators . | . . . Repair Stations 1 | . 1 . Recycling Units 2 | . 2 . Scanalyzers . | . . . Garrison Access . | . . . Total Hacks 14 | . 14 . Successful 8 | . 8 . Failed 6 | . 6 . Catastrophic 1 | . 1 . Database Lockouts . | . . . Manual 3 | . 3 . Terminals 5 | . 5 . Fabricators . | . . . Repair Stations 6 | . 6 . Recycling Units 3 | . 3 . Scanalyzers . | . . . Garrison Access . | . . . Terminal Hacks 3 | . 3 . Record 1 | . 1 . Prototype ID Bank 1 | . 1 . Level Access Points 1 | . 1 . Fabricator Hacks . | . . . Repair Station Hacks 3 | . 3 . Scan Component 2 | . 2 . Repair 1 | . 1 . Recycling Unit Hacks 2 | . 2 . Report Inventory 1 | . 1 . Retrieve Components 1 | . 1 . Scanalyzer . | . . . Garrison Access Hacks . | . . . Unauthorized Hacks . | . . . Terminals . | . . . Fabricators . | . . . Repair Stations . | . . . Recycling Units . | . . . Scanalyzers . | . . . Garrison Access . | . . . Data Cores Recovered . | . . . Used . | . . . Hacking Detections 3 | . 3 . Full Trace Events 1 | . 1 . Feedback Events . | . . . Feedback Blocked . | . . . Robot Schematics Acquired . | . . . Robots Built . | . . . Authchips . | . . . Time . | . . . Total Robot Build Rating . | . . . Part Schematics Acquired . | . . . Parts Built . | . . . Authchips . | . . . Time . | . . . Total Part Build Rating . | . . . Parts Repaired 1 | . 1 . Time 26 | . 26 . Parts Recycled . | . . . Recycled Matter . | . . . Retrieved Matter . | . . . Retrieved Components 9 | . 9 . Parts Scanalyzed . | . . . Part Schematics Acquired . | . . . Parts Damaged . | . . . Bothacking | -11 -10 -10 ------------ Run | Yrd Mat Min Used RIF Installer . | . . . Robots Hacked . | . . . Non-combat . | . . . Combat . | . . . Robot Hacks Applied . | . . . Relay Couplers Released . | . . . Fabnet Peak Effective % . | . . . Robots Rewired . | . . . Allies Hacked . | . . . Hacks Repelled . | . . . Allies | -11 -10 -10 -------- Run | Yrd Mat Min Total Allies . | . . . Largest Group . | . . . Highest-Rated Group . | . . . Highest-Rated Ally . | . . . Total Orders . | . . . Ally Attacks . | . . . Total Damage . | . . . Kills . | . . . Allies Corrupted . | . . . Allies Melted . | . . . Intel | -11 -10 -10 ------- Run | Yrd Mat Min Robot Analysis Total . | . . . Derelict Logs Recovered . | . . . Drone Launches . | . . . Drone Recoveries . | . . . Exploration | -11 -10 -10 ------------- Run | Yrd Mat Min Turns Passed 1870 | 131 1565 174 Spaces Moved 901 | 107 758 36 Core 13 | 13 . . Treads . | . . . Legs 888 | 94 758 36 Wheels . | . . . Hover . | . . . Flight . | . . . Fastest Speed 50 | 50 120 190 Average Speed 167 | 111 171 256 Slowest Speed 260 | 120 190 260 Overloaded Moves . | . . . Propulsion Burnouts . | . . . Robots Hopped . | . . . Cave-ins Triggered . | . . . Exploration Rate (%) 41 | 6 96 22 Regions Visited 2 Branch Regions 1 Pre-discovered Areas . | . . . Known Exits Taken . | . . . Unknown Exits Taken 2 | 1 1 . Scrap Searched . | . . . Spaces Dug . | . . . Terrain Destroyed 40 | . 39 1 Melee . | . . . Projectile 1 | . . 1 AOE 39 | . 39 . Terrain Rammed . | . . . Walls Destroyed . | . . . Machines Disabled . | . . . Actions | -11 -10 -10 --------- Run | Yrd Mat Min Total 1136 | 116 934 86 Wait 94 | . 74 20 Move 899 | 106 757 36 Hop . | . . . Pick Up 30 | 6 21 3 Fast Attach 8 | 4 4 . Attach 11 | . 5 6 Detach . | . . . Swap 8 | . 8 . Drop 16 | . 16 . Fire 70 | . 49 21 Melee . | . . . Ram . | . . . Kick . | . . . Crush . | . . . Escape Stasis . | . . . Rewire . | . . . Trap . | . . . Miscellaneous . | . . . Route ------- -11/Scrapyard -10/Materials (discovered 4 exits: *Mat x3 / [*Min]) -10/Mines History --------- Turn | Location | Event 12 | -11/Scrapyard | Discovered new exit (range 15) 132 | -11/Scrapyard | Entered Materials 308 | -10/Materials | Build established: Mutant 317 | -10/Materials | Repaired Aluminum Leg 583 | -10/Materials | Discovered new exit (range 7) 591 | -10/Materials | Identified exit to Materials 1625 | -10/Materials | Lost 3 parts (1n1u1w) 1697 | -10/Materials | Entered Mines 1728 | -10/Mines | Core integrity fell below 50% 1758 | -10/Mines | Lost 3 parts (1p1n1w) 1854 | -10/Mines | Core integrity fell below 20% 1871 | -10/Mines | Destroyed by G-47 Trooper with Particle Gun Last Messages --------------- 01727_ G-47 Trooper destroyed. 01727_ G-34 Mercenary destroyed. 01727_ Plasma Injector explodes. 01727_ G-47 Trooper destroyed. 01727_ Plasma Injector explodes. 01727_ Aluminum Leg destroyed. 01728_ Acquired 9 matter. 01739_ Acquired 34 matter. 01745_ Acquired Aluminum Leg. 01758_ Acquired 28 matter. 01764_ U-05 Engineer builds a Wall. 01768_ U-05 Engineer lays Concrete. 01769_ U-05 Engineer builds a Wall. 01800_ K-01 Serf collects debris. 01834_ Seismic Survey Station disabled. 01853_ Assault Rifle destroyed. 01861_ Ion Engine destroyed. 01863_ Aluminum Leg destroyed. 01863_ Mining Laser destroyed. 01867_ Lgt. Assault Rifle destroyed. Map ----- +----------------------------------------------------+ | ??????????????????????????????????????????? #???? | | ??????????????????????????????????????##### #???? | | ????????????????????????????????????###""# ###?? | | ???????????????????????????????????## "#?? | | ???????????????????????????????????#" "#?? | | ???????????????????????????????????#" "#?? | | ????????????????????????????####???#" "#?? | | ???????????????????????????# ?????# "##? | | ??????????????????????????? ????## #? | | ??????????????????????????? ????#" #?? | | ??????????????????????????? ????#" ##?? | | ???????????????????????????# ???##" = "#?? | | ???????????????????????????# #???# " #?? | | ???????????????????????????# #???# " ##?? | | ???????????????????????????# #???# "#?? | | ???????????????????????????# #?#####* ##?? | | ???????????????????????????# #?# "#?? | | ???????????????????????????# #?# ### "#?? | | ???????????????????????????# ### ##" ##?? | | ???????????????????????????# ### "#?? | | ????????????????????????#### #####?# "#?? | | ????????????????????????# #?????###"""""""##?? | | ????????????????????????# #####????????########??? | | ????????????????????????# #??????????????????????? | | ????????????????????????# #??????????????????????? | | ????????????????????????#@##?????????????????????? | | ??????????????????####### ;#######???????????????? | | ??????????????????# g #????????? | | ??????????????????# g #????????? | | ??????????????????# #????????? | | ??????????????????# ?????????? | | ??????????????????# """ " " """ """ """ ?????????? | | ??????????????????# """ " " """ """ ""???????????? | | ??????????????????# """ """ """ """??????????????? | | ??????????????????# ???????????????? | | ????????????????????""" """ """??"???????????????? | | ?????????????????????"" """ ""???????????????????? | | ?????????????????????""?????""???????????????????? | | ?????????????????????????????????????????????????? | | ?????????????????????????????????????????????????? | | ?????????????????????????????????????????????????? | | | | | | | | | | | | | | | | | | | +----------------------------------------------------+ Best States ------------- Heat Dissipation 25 Energy Generation 10 Energy Capacity 250 Matter Stores 300 Matter Capacity 300 Sight Range 16 Terrain Scan Density 10 ECM Strength 1 Core Shielding 20 Weapon Shielding 33 Evasion (%) 55 Item Schematics ----------------- None Robot Schematics ------------------ None Fabricated ------------ Nothing Alien Tech Used ----------------- None Achievements -------------- None Challenges ------------ None Game ------ Seed SpikedDamperCannon Manual? 0 Play Time 00:25:10 Cumulative 20.6 hours Start 2024.09.08 @ 11:02:45 End 2024.09.08 @ 11:43:48 Sessions 6 Manual Loads 0 Difficulty Rogue Special Mode None Game No. 33 Rogue 33 Adventurer 0 Explorer 0 Win Type - Total 0 Types 0/0/0/0/0/0/0/0/0 Lore% 6 Gallery% 24 Achievement% 20 Wizard Run 0 Options --------- Layout 0 ASCII 0 Keyboard 0 Movement Mouse Keybinds 0 Fullscreen 1 Font 18/SmallcapsGlow Map View 76x50 Zoom Use 0% Tactical HUD 1 Map Filters NONE Filters NONE Steam 1 RUN: 4772cbe1-0326-4390-aed6-46082b8cb165